bitfinex/quotes_SOLUSD_20250630
["timestamp","ask_amount","ask_price","bid_price","bid_amount"]
[1751291404312,44.44128257,150.63,150.55,6.84227629]
[1751291404313,8.92346623,150.6,150.55,6.84227629]
[1751291404500,8.92346623,150.6,150.56,8.92346623]
[1751291404818,8.92346623,150.64,150.59,8.92346623]
[1751291404975,8.92346623,150.64,150.55,7.12659943]
[1751291404976,41.07038009,150.66,150.6,8.92346623]
[1751291405176,8.92346623,150.64,150.59,8.92346623]
[1751291405370,8.92346623,150.64,150.6,6.64010624]
[1751291405608,8.92346623,150.64,150.59,8.92346623]
[1751291405810,8.92346623,150.63,150.59,8.92346623]
[1751291406412,8.92346623,150.61,150.58,0.2]
[1751291407082,8.92346623,150.6,150.58,0.2]
[1751291407276,6.63966536,150.61,150.58,0.2]
[1751291407483,8.92346623,150.6,150.58,0.2]
[1751291409485,8.92346623,150.59,150.58,0.2]
[1751291410118,8.92346623,150.6,150.58,0.2]
[1751291410487,9.42346623,150.6,150.58,0.2]
[1751291411291,0.5,150.6,150.58,0.2]
[1751291411491,26.0,150.63,150.58,9.12346623]
[1751291411701,34.92346623,150.63,150.59,8.92346623]
[1751291412031,8.92346623,150.63,150.59,8.92346623]
[1751291412184,26.0,150.65,150.6,8.92346623]
[1751291412185,27.57311509,150.65,150.6,8.92346623]
[1751291412387,8.92346623,150.64,150.6,8.92346623]
[1751291412903,27.57311509,150.65,150.6,8.92346623]
[1751291413308,8.92346623,150.64,150.6,15.56355615]
[1751291413893,8.92346623,150.64,150.59,15.56384021]
[1751291414094,8.92346623,150.61,150.58,0.2]
[1751291415496,61.24440491,150.65,150.58,9.12346623]
[1751291415699,8.92346623,150.64,150.6,8.92346623]
[1751291415918,51.28774424,150.65,150.6,8.92346623]
[1751291416130,8.92346623,150.64,150.6,8.92346623]
[1751291416298,8.92346623,150.64,150.59,8.92346623]
[1751291416689,8.92346623,150.64,150.6,8.92346623]
[1751291417193,8.92346623,150.63,150.59,8.92346623]
[1751291417505,18.64964886,150.65,150.58,6.84094061]
[1751291417506,8.92346623,150.64,150.6,8.92346623]
[1751291418012,8.92346623,150.64,150.58,6.84094061]
[1751291418186,8.92346623,150.64,150.59,8.92346623]
[1751291418390,8.92346623,150.64,150.6,8.92346623]
[1751291419010,8.92346623,150.64,150.58,0.2]
[1751291419213,6.63765877,150.66,150.61,8.92346623]
[1751291419513,8.92346623,150.66,150.61,8.92346623]
[1751291419714,6.63614042,150.69,150.63,8.92346623]
[1751291419912,8.92346623,150.68,150.63,8.92346623]
[1751291420633,29.3186,150.71,150.63,8.92346623]
[1751291420634,18.64964886,150.71,150.64,26.0]
[1751291420801,8.92346623,150.7,150.64,26.0]
[1751291420999,8.92346623,150.7,150.65,15.56117533]
[1751291421508,15.55927977,150.7,150.65,8.92346623]
[1751291421724,8.92346623,150.68,150.64,26.0]
[1751291421937,8.92346623,150.68,150.64,34.92346623]
[1751291422105,8.92346623,150.68,150.64,26.0]
[1751291422295,8.92346623,150.67,150.62,8.92346623]
[1751291422500,8.92346623,150.66,150.62,8.92346623]
[1751291422801,8.92346623,150.67,150.62,8.92346623]
[1751291423003,8.92346623,150.68,150.63,8.92346623]
[1751291423295,15.56030764,150.68,150.63,8.92346623]
[1751291423501,172.9,150.73,150.64,8.92346623]
[1751291423701,8.92346623,150.7,150.66,8.92346623]
[1751291424233,15.55828576,150.72,150.67,8.92346623]
[1751291424430,15.55795191,150.73,150.69,8.92346623]
[1751291424737,8.92346623,150.72,150.68,8.92346623]
[1751291425511,6.63492824,150.72,150.67,6.63661667]
[1751291425709,8.92346623,150.71,150.67,8.92346623]
[1751291425941,8.92346623,150.72,150.67,8.92346623]
[1751291426141,8.92346623,150.72,150.66,8.21000599]
[1751291426425,8.92346623,150.71,150.67,8.92346623]
[1751291427028,18.64964886,150.73,150.67,8.92346623]
[1751291427324,6.73406778,150.74,150.69,8.92346623]
[1751291427514,6.73406778,150.74,150.7,8.92346623]
[1751291427723,8.92346623,150.73,150.69,8.92346623]
[1751291428027,0.1,150.74,150.7,8.92346623]
[1751291428228,0.1,150.74,150.71,8.92346623]
[1751291431122,6.73393958,150.74,150.71,8.92346623]
[1751291431332,0.1,150.74,150.7,8.92346623]
[1751291431942,0.1,150.74,150.71,8.92346623]
[1751291432432,0.1,150.74,150.73,8.92346623]
[1751291432621,0.1,150.74,150.7,87.88432314]
[1751291432937,0.1,150.74,150.73,8.92346623]
[1751291433236,0.1,150.74,150.73,26.0]
[1751291433432,0.1,150.74,150.73,32.63437935]
[1751291433631,0.1,150.74,150.73,32.91870249]
[1751291434021,0.1,150.74,150.73,43.47486872]
[1751291434421,0.1,150.74,150.73,34.55140249]
[1751291434607,0.1,150.74,150.73,43.47486872]
[1751291435242,0.1,150.74,150.73,49.76336872]
[1751291437435,0.1,150.74,150.73,40.83990249]
[1751291437622,0.1,150.74,150.73,43.47486872]
[1751291437819,0.1,150.74,150.73,43.19054558]
[1751291438047,0.1,150.74,150.73,43.47486872]
[1751291438839,0.1,150.74,150.73,62.12451758]
[1751291439039,0.1,150.74,150.73,32.91870249]
[1751291439335,0.1,150.74,150.73,41.84216872]
[1751291439918,0.1,150.74,150.73,34.92346623]
[1751291440637,0.1,150.74,150.73,26.0]
[1751291440826,0.1,150.74,150.73,34.92346623]
[1751291441021,0.1,150.74,150.73,26.0]
[1751291441227,0.1,150.74,150.72,15.14346623]
[1751291441436,0.1,150.74,150.73,8.92346623]
[1751291442455,0.1,150.74,150.73,15.55784558]
[1751291442757,0.1,150.74,150.73,15.84216872]
[1751291444032,0.1,150.74,150.73,96.80778937]
[1751291444225,0.1,150.74,150.73,103.15784558]
[1751291444428,0.1,150.74,150.73,96.52346623]
[1751291445639,0.1,150.74,150.73,103.15784558]
[1751291446718,0.1,150.74,150.73,103.44216872]
[1751291446943,0.1,150.74,150.73,94.51870249]
[1751291447241,0.1,150.74,150.73,103.44216872]
[1751291448427,0.1,150.74,150.73,103.15784558]
[1751291449637,0.1,150.74,150.73,87.6]
[1751291449842,0.1,150.74,150.72,6.22]
[1751291450059,6.73402679,150.74,150.69,87.6]
[1751291450329,6.73402679,150.74,150.7,8.92346623]
[1751291450637,15.65749302,150.74,150.7,8.92346623]
[1751291452053,0.1,150.74,150.71,8.92346623]
[1751291452258,0.1,150.74,150.72,8.92346623]
[1751291452424,0.1,150.74,150.73,8.92346623]
[1751291454836,0.1,150.74,150.73,15.55784558]
[1751291455062,0.1,150.74,150.73,8.92346623]
[1751291455848,0.1,150.74,150.72,8.92346623]
[1751291457464,0.1,150.74,150.71,6.91954394]
[1751291457645,0.1,150.74,150.71,15.84301017]
[1751291457850,15.6576748,150.74,150.7,87.6]
[1751291458048,15.6576748,150.74,150.7,96.52346623]
[1751291458362,15.6576748,150.74,150.7,87.6]
[1751291458563,15.6576748,150.74,150.67,12.85699166]
[1751291458564,8.92346623,150.73,150.67,12.85699166]
[1751291458735,8.92346623,150.72,150.68,8.92346623]
[1751291458932,15.26316623,150.73,150.68,8.92346623]
[1751291459153,8.92346623,150.72,150.68,8.92346623]
[1751291459364,15.55836702,150.72,150.68,8.92346623]
[1751291459570,21.89770467,150.73,150.69,8.92346623]
[1751291460364,6.73405371,150.74,150.71,8.92346623]
[1751291460665,6.73405371,150.74,150.7,8.92346623]
[1751291460842,8.92346623,150.73,150.68,87.6]
[1751291461036,8.92346623,150.73,150.69,8.92346623]
[1751291461239,15.65751994,150.74,150.69,8.92346623]
[1751291462140,8.92346623,150.73,150.69,8.92346623]
[1751291463345,0.1,150.74,150.71,8.92346623]
[1751291464187,0.1,150.74,150.73,8.92346623]
[1751291466274,0.1,150.74,150.7,87.6]
[1751291466275,0.1,150.74,150.71,6.91958291]
[1751291466472,0.1,150.74,150.73,8.92346623]
[1751291466986,0.1,150.74,150.73,9.20778937]
[1751291467157,0.1,150.74,150.73,27.85743823]
[1751291467353,0.1,150.75,150.74,51.56791123]
[1751291467609,0.1,150.75,150.74,66.67137746]
[1751291468068,0.1,150.75,150.74,40.67137746]
[1751291469388,0.1,150.81,150.8,8.92346623]
[1751291470660,0.1,150.81,150.78,0.28432314]
[1751291470979,0.1,150.81,150.8,8.92346623]
[1751291472694,0.1,150.81,150.8,15.8390891]
[1751291472893,0.1,150.81,150.76,26.0]
[1751291473090,0.1,150.81,150.79,8.92346623]
[1751291474698,0.1,150.81,150.78,8.92346623]
[1751291474886,0.1,150.81,150.8,8.92346623]
[1751291475269,0.1,150.81,150.79,0.28432314]
[1751291475469,0.1,150.81,150.8,8.92346623]
[1751291476197,0.1,150.81,150.78,8.92346623]
[1751291476994,15.65432902,150.81,150.77,8.92346623]
[1751291477493,6.73086279,150.81,150.77,8.92346623]
[1751291477865,0.1,150.81,150.78,8.92346623]
[1751291478268,0.1,150.81,150.79,8.92346623]
[1751291479882,0.1,150.81,150.75,26.28432314]
[1751291479883,6.73089309,150.81,150.75,31.37215648]
[1751291480181,12.10304957,150.81,150.76,5.37215648]
[1751291480382,0.1,150.81,150.78,5.37215648]
[1751291480695,5.37215648,150.79,150.75,31.37215648]
[1751291480989,11.54005648,150.79,150.75,5.37215648]
[1751291481194,18.1719609,150.79,150.75,5.37215648]
[1751291481485,18.17181972,150.79,150.75,12.00562567]
[1751291481689,5.37215648,150.78,150.71,87.6]
[1751291481888,5.37215648,150.76,150.71,92.97215648]
[1751291482203,5.37215648,150.75,150.71,92.97215648]
[1751291482793,5.37215648,150.76,150.71,92.97215648]
[1751291483000,12.00526666,150.76,150.71,99.60708416]
[1751291483370,12.00526666,150.76,150.71,94.23492768]
[1751291483570,12.00526666,150.76,150.72,5.37215648]
[1751291483774,8.96207764,150.75,150.71,96.56207764]
[1751291484281,15.59518782,150.76,150.71,96.56207764]
[1751291484591,8.96207764,150.74,150.71,87.6]
[1751291484796,8.96207764,150.73,150.69,6.16]
[1751291484977,8.96207764,150.73,150.69,15.12207764]
[1751291485179,15.59650586,150.73,150.69,15.12207764]
[1751291485386,8.96207764,150.72,150.69,6.16]
[1751291485687,15.59650586,150.73,150.69,15.12207764]
[1751291485889,8.96207764,150.74,150.7,8.96207764]
[1751291486210,15.5951368,150.76,150.69,12.79611596]
[1751291486495,15.5951368,150.76,150.71,8.96207764]
[1751291486686,8.96207764,150.75,150.71,8.96207764]
[1751291486891,15.59560212,150.75,150.71,8.96207764]
[1751291487698,76.46727724,150.79,150.71,8.96207764]
[1751291487699,38.79980297,150.79,150.74,8.96207764]
[1751291487880,12.79980297,150.79,150.75,8.96207764]
[1751291488499,21.76188061,150.79,150.75,8.96207764]
[1751291489882,12.79980297,150.79,150.73,32.63437935]
[1751291490187,21.76188061,150.79,150.75,8.96207764]
[1751291490388,8.96207764,150.76,150.72,26.0]
[1751291490701,8.96207764,150.73,150.68,8.96207764]
[1751291490883,8.96207764,150.72,150.68,15.59845653]
[1751291491092,8.96207764,150.72,150.68,6.63637889]
[1751291491396,6.63437935,150.73,150.68,15.59845653]
[1751291491599,15.59645699,150.73,150.68,15.59845653]
[1751291491789,6.63437935,150.73,150.68,15.59845653]
[1751291491991,15.59645699,150.73,150.68,15.59845653]
[1751291492502,15.59645699,150.73,150.68,34.96207764]
[1751291492878,15.59645699,150.73,150.69,8.96207764]
[1751291493197,1.5165,150.74,150.71,8.96207764]
[1751291494183,1.6131,150.78,150.73,8.96207764]
[1751291494378,17.20765432,150.78,150.73,8.96207764]
[1751291495307,17.20765432,150.78,150.74,8.96207764]
[1751291496882,1.6131,150.78,150.75,8.96207764]
[1751291497098,1.6131,150.78,150.76,8.96207764]
[1751291497704,6.1679,150.79,150.77,8.96207764]
[1751291498305,0.1,150.81,150.78,8.96207764]
[1751291498901,0.1,150.81,150.8,8.96207764]
[1751291499092,0.1,150.81,150.8,18.20847842]
[1751291499292,0.1,150.81,150.8,105.80847842]
[1751291499704,0.1,150.81,150.8,124.45812728]
[1751291499898,0.1,150.81,150.8,87.88432314]
[1751291500091,0.1,150.81,150.8,103.47770051]
[1751291501307,0.1,150.81,150.8,129.47770051]
[1751291506427,0.1,150.81,150.8,122.56207764]
[1751291507809,0.1,150.81,150.8,129.19337737]
[1751291509035,0.1,150.81,150.8,41.59337737]
[1751291509790,0.1,150.81,150.8,38.00115114]
[1751291509995,0.1,150.81,150.8,12.00115114]
[1751291510843,0.1,150.81,150.79,6.18]
[1751291510998,12.10082573,150.81,150.79,6.18]
[1751291511402,5.46985141,150.81,150.79,6.18]
[1751291511603,12.10078402,150.81,150.79,6.18]
[1751291512521,0.1,150.81,150.79,6.18]
[1751291513430,5.46985141,150.81,150.79,6.18]
[1751291513603,0.1,150.81,150.79,6.18]
[1751291514930,0.1,150.81,150.79,11.54985141]
[1751291515223,0.1,150.81,150.8,5.36985141]
[1751291516018,0.1,150.81,150.8,12.00115114]
[1751291516412,0.1,150.81,150.8,12.28547428]
[1751291516614,0.1,150.81,150.8,6.91562287]
[1751291516820,0.1,150.81,150.8,5.36985141]
[1751291517845,0.1,150.81,150.8,5.65417455]
[1751291518143,0.1,150.81,150.8,17.65532569]
[1751291518905,0.1,150.81,150.8,43.65532569]
[1751291519110,0.1,150.86,150.83,26.0]
[1751291519330,0.1,150.86,150.85,5.36985141]
[1751291520179,0.1,150.86,150.85,11.99895316]
[1751291520312,0.1,150.86,150.85,30.93292516]
[1751291520514,0.1,150.86,150.85,12.2832763]
[1751291522026,0.1,150.86,150.85,15.85364973]
[1751291522205,0.1,150.86,150.85,64.50329859]
[1751291522406,0.1,150.88,150.87,44.933972]
[1751291522601,0.1,150.93,150.89,0.28432314]
[1751291522828,0.1,150.93,150.92,9.22454798]
[1751291523528,0.1,150.93,150.92,39.22454798]
[1751291524235,0.1,150.93,150.92,38.94022484]
[1751291525612,0.1,150.93,150.92,45.56625187]
[1751291525833,0.1,150.93,150.92,45.85057501]
[1751291528041,0.1,150.93,150.92,90.50022387]
[1751291528715,0.1,150.93,150.92,64.50022387]
[1751291529528,0.1,150.93,150.92,71.56625187]
[1751291529837,0.1,150.93,150.92,21.68625187]
[1751291530024,0.1,150.93,150.92,6.12]
[1751291530211,9.04022484,150.93,150.92,6.12]
[1751291530412,0.1,150.93,150.92,6.12]
[1751291531046,0.1,150.93,150.89,6.62719413]
[1751291531217,0.1,150.93,150.89,15.56741897]
[1751291531612,15.66592215,150.93,150.87,12.74809718]
[1751291531940,0.1,150.93,150.91,8.94022484]
[1751291532641,0.1,150.93,150.9,15.56673607]
[1751291533634,0.1,150.93,150.91,8.94022484]
[1751291533835,0.1,150.93,150.89,6.62734442]
[1751291534218,0.1,150.93,150.91,8.94022484]
[1751291534846,0.1,150.93,150.9,15.56711088]
[1751291535222,0.1,150.93,150.92,8.94022484]
[1751291536050,0.1,150.93,150.92,9.22454798]
[1751291536418,0.1,150.93,150.9,94.22688604]
[1751291536619,0.1,150.93,150.92,8.94022484]
[1751291537642,0.1,150.93,150.9,87.6]
[1751291537850,0.1,150.93,150.9,94.22687165]
[1751291538047,10.50492484,150.91,150.85,6.62898606]
[1751291538247,8.94022484,150.9,150.86,8.94022484]
[1751291538749,1.5647,150.91,150.85,15.5692109]
[1751291538750,8.94022484,150.89,150.85,15.5692109]
[1751291538952,8.94022484,150.9,150.86,8.94022484]
[1751291539160,8.94022484,150.88,150.82,6.63042036]
[1751291539336,15.02492484,150.89,150.84,8.94022484]
[1751291539535,6.0847,150.89,150.85,8.94022484]
[1751291539726,15.02492484,150.89,150.83,0.28432314]
[1751291540162,21.65227495,150.89,150.84,15.56971894]
[1751291540546,12.71205011,150.89,150.85,8.94022484]
[1751291540854,15.02492484,150.89,150.85,8.94022484]
[1751291541537,6.0847,150.89,150.85,9.14022484]
[1751291542263,6.0847,150.89,150.86,8.94022484]
[1751291542456,8.94022484,150.88,150.85,0.2]
[1751291543138,21.65226962,150.89,150.85,9.14022484]
[1751291543338,21.65226962,150.89,150.85,0.2]
[1751291543339,6.0847,150.89,150.85,0.2]
[1751291543746,15.02492484,150.89,150.85,0.2]
[1751291544141,12.71217109,150.89,150.85,0.2]
[1751291544348,8.94022484,150.88,150.85,0.2]
[1751291545170,12.71217109,150.89,150.85,0.2]
[1751291545342,12.71217109,150.89,150.85,15.76917343]
[1751291545343,6.0847,150.89,150.85,15.76917343]
[1751291545545,6.0847,150.89,150.86,8.94022484]
[1751291546364,21.65238059,150.89,150.85,0.2]
[1751291546866,6.0847,150.89,150.86,8.94022484]
[1751291547049,0.1,150.9,150.88,8.94022484]
[1751291547246,0.1,150.9,150.89,8.94022484]
[1751291548268,0.1,150.9,150.89,15.56756926]
[1751291550064,0.1,150.9,150.89,15.8518924]
[1751291551172,0.1,150.9,150.89,24.79211724]
[1751291551477,0.1,150.9,150.89,15.8518924]
[1751291551952,0.1,150.9,150.89,24.79211724]
[1751291552146,0.1,150.9,150.89,43.4417661]
[1751291552764,0.1,150.9,150.89,73.4417661]
[1751291552970,0.1,150.93,150.89,73.4417661]
[1751291553182,0.1,150.93,150.92,53.87419684]
[1751291554248,0.1,150.93,150.92,83.87419684]
[1751291554570,0.1,150.93,150.92,71.85057501]
[1751291554873,0.1,150.93,150.92,41.56625187]
[1751291555170,0.1,150.93,150.92,41.85057501]
[1751291557176,0.1,150.93,150.92,32.62602703]
[1751291557371,0.1,150.93,150.92,15.56625187]
[1751291557585,0.1,150.93,150.92,6.62602703]
[1751291558051,0.1,150.93,150.92,15.56625187]
[1751291559082,0.1,150.93,150.91,15.5665268]
[1751291559387,0.1,150.93,150.9,6.62673401]
[1751291559570,0.1,150.93,150.9,15.56695885]
[1751291559882,0.1,150.93,150.91,8.94022484]
[1751291560257,0.1,150.93,150.92,8.94022484]
[1751291560747,0.1,150.93,150.92,15.56625187]
[1751291562476,0.1,150.93,150.92,15.85057501]
[1751291562674,0.1,150.93,150.92,148.10022387]
[1751291562859,6.3759,150.98,150.95,0.28432314]
[1751291563063,0.1,151.0,150.97,8.94022484]
[1751291563360,0.1,151.0,150.95,0.28432314]
[1751291563361,0.1,151.0,150.99,8.94022484]
[1751291565445,0.1,151.0,150.94,93.7]
[1751291565659,8.94022484,150.99,150.95,8.94022484]
[1751291567056,8.94022484,150.99,150.95,15.5648674]
[1751291567256,15.66286305,151.0,150.95,8.94022484]
[1751291567572,8.94022484,150.99,150.95,8.94022484]
[1751291568175,15.66286305,151.0,150.96,8.94022484]
[1751291568866,9.04022484,151.0,150.96,8.94022484]
[1751291569266,15.66278193,151.0,150.95,8.94022484]
[1751291570659,15.66278193,151.0,150.95,15.56484428]
[1751291570979,8.94022484,150.99,150.95,6.62461944]
[1751291571180,8.94022484,150.99,150.95,8.94022484]
[1751291572360,15.56339003,150.99,150.95,8.94022484]
[1751291573560,15.56339003,150.99,150.95,15.56487867]
[1751291573963,15.56339003,150.99,150.95,8.94022484]
[1751291574553,15.56339003,150.99,150.95,15.5649207]
[1751291574786,15.66291147,151.0,150.95,15.5649207]
[1751291575081,9.04022484,151.0,150.96,8.94022484]
[1751291576181,15.66278308,151.0,150.96,8.94022484]
[1751291579194,8.94022484,150.99,150.94,15.5653739]
[1751291579404,1.5498,150.97,150.93,15.76560618]
[1751291579807,1.5498,150.97,150.93,12.18674486]
[1751291580495,1.5498,150.97,150.94,5.36136352]
[1751291581169,18.74964886,151.0,150.96,5.36136352]
[1751291581369,25.37228553,151.0,150.96,5.36136352]
[1751291581567,30.73364905,151.0,150.95,5.36136352]
[1751291582181,25.37228553,151.0,150.96,5.36136352]
[1751291582398,30.73364905,151.0,150.96,5.36136352]
[1751291582574,24.11101238,151.0,150.96,11.98561802]
[1751291582775,0.1,151.0,150.97,5.36136352]
[1751291583620,6.72258154,151.0,150.97,5.36136352]
[1751291584111,0.1,151.0,150.97,5.36136352]
[1751291584496,25.3722621,151.0,150.97,5.36136352]
[1751291584711,30.73362562,151.0,150.96,5.36136352]
[1751291585378,30.73362562,151.0,150.93,0.2]
[1751291585578,30.73362562,151.0,150.96,5.36136352]
[1751291585779,25.3722621,151.0,150.96,5.36136352]
[1751291586899,30.73362562,151.0,150.96,5.36136352]
[1751291587295,25.3722621,151.0,150.96,5.36136352]
[1751291588375,30.73362562,151.0,150.93,0.2]
[1751291588576,5.36136352,150.98,150.94,5.36136352]
[1751291588790,5.36136352,150.99,150.95,5.36136352]
[1751291589080,5.36136352,150.99,150.94,5.36136352]
[1751291589394,5.36136352,150.99,150.95,5.36136352]
[1751291589778,30.73362562,151.0,150.96,5.36136352]
[1751291590984,25.3722621,151.0,150.96,5.36136352]
[1751291591410,0.1,151.0,150.98,5.36136352]
[1751291592901,0.1,151.0,150.97,5.36136352]
[1751291593999,6.72255038,151.0,150.97,5.36136352]
[1751291594301,30.73356276,151.0,150.96,5.36136352]
[1751291594701,25.37219924,151.0,150.96,5.36136352]
[1751291595074,30.73356276,151.0,150.96,5.36136352]
[1751291595395,25.37219924,151.0,150.96,5.36136352]
[1751291595901,6.72255038,151.0,150.96,6.62416052]
[1751291596106,6.72255038,151.0,150.97,5.36136352]
[1751291596609,30.73356276,151.0,150.96,5.36136352]
[1751291597103,30.73356276,151.0,150.94,6.62479094]
[1751291597312,30.73356276,151.0,150.96,5.36136352]
[1751291597511,25.37219924,151.0,150.96,5.36136352]
[1751291598212,30.73356276,151.0,150.96,5.36136352]
[1751291600811,25.37219924,151.0,150.96,5.36136352]
[1751291601299,0.1,151.0,150.97,5.36136352]
[1751291601503,0.1,151.0,150.99,5.36136352]
[1751291602105,0.1,151.0,150.99,11.98431868]
[1751291603180,0.1,151.0,150.99,6.62295516]
[1751291603381,0.1,151.0,150.99,11.98431868]
[1751291603684,0.1,151.0,150.99,12.26864182]
[1751291604501,0.1,151.0,150.99,11.98431868]
[1751291605310,0.1,151.0,150.99,5.36136352]
[1751291605612,0.1,151.0,150.99,35.36136352]
[1751291605993,0.1,151.0,150.99,41.98431868]
[1751291606193,0.1,151.0,150.99,35.36136352]
[1751291607281,0.1,151.0,150.99,41.98431868]
[1751291609015,0.1,151.0,150.99,42.26864182]
[1751291615623,0.1,151.0,150.99,41.98431868]
[1751291616408,0.1,151.0,150.99,30.0]
[1751291616609,0.1,151.0,150.99,41.98431868]
[1751291617534,0.1,151.0,150.99,11.98431868]
[1751291622336,0.1,151.0,150.99,6.62295516]
[1751291622543,0.1,151.0,150.99,11.98431868]
[1751291624044,0.1,151.0,150.98,11.98463056]
[1751291624337,5.46136352,151.0,150.96,6.62427133]
[1751291624518,5.36136352,150.99,150.96,6.62427133]
[1751291624918,11.57556352,151.0,150.96,11.98563485]
[1751291625139,6.2142,151.0,150.97,5.36136352]
[1751291626323,0.1,151.0,150.99,5.36136352]
[1751291628347,0.1,151.0,150.98,5.36136352]
[1751291628944,0.1,151.0,150.98,11.98459503]
[1751291629448,0.1,151.0,150.99,5.36136352]
[1751291631118,0.1,151.0,150.99,11.98431868]
[1751291633247,0.1,151.0,150.99,5.36136352]
[1751291635554,0.1,151.0,150.98,6.62329641]
[1751291635852,0.1,151.0,150.98,5.36136352]
[1751291636737,0.1,151.0,150.97,5.36136352]
[1751291637730,0.1,151.0,150.96,5.36136352]
[1751291637731,6.72257069,151.0,150.96,5.36136352]
[1751291638046,6.72257069,151.0,150.97,5.36136352]
[1751291638252,0.1,151.0,150.97,5.36136352]
[1751291638433,0.1,151.0,150.98,5.36136352]
[1751291639241,0.1,151.0,150.99,5.36136352]
[1751291639759,0.1,151.0,150.98,5.36136352]
[1751291640853,0.1,151.0,150.99,5.36136352]
[1751291642135,0.1,151.0,150.99,5.64568666]
[1751291642743,0.1,151.0,150.99,12.26864182]
[1751291644054,0.1,151.0,150.99,42.26864182]
[1751291648852,0.1,151.07,151.0,0.28432314]
[1751291649162,0.1,151.07,151.06,5.36136352]
[1751291650847,0.1,151.07,151.05,5.36136352]
[1751291653785,0.1,151.07,151.04,5.36136352]
[1751291653984,12.08085931,151.07,151.02,11.98279885]
[1751291654384,5.36136352,151.06,151.02,5.36136352]
[1751291655192,11.98168034,151.06,151.01,11.40136352]
[1751291655367,11.98168034,151.06,151.02,5.36136352]
[1751291656487,5.36136352,151.04,151.0,5.36136352]
[1751291656875,6.86526352,151.05,151.01,5.36136352]
[1751291657287,8.12446294,151.05,151.02,5.36136352]
[1751291657690,1.5039,151.05,150.99,6.62295516]
[1751291657890,1.5039,151.05,151.02,5.36136352]
[1751291659393,1.5039,151.05,151.03,5.36136352]
[1751291659688,32.71955153,151.07,151.03,5.36136352]
[1751291660391,32.71955153,151.07,151.04,5.36136352]
[1751291660974,32.71955153,151.07,151.02,6.62143038]
[1751291661295,26.1,151.07,151.02,6.62143038]
[1751291661494,0.1,151.07,151.05,5.36136352]
[1751291661794,0.1,151.07,151.06,5.36136352]
[1751291661988,0.1,151.07,151.05,5.36136352]
[1751291665093,0.1,151.07,151.05,11.98162051]
[1751291665401,0.1,151.07,151.05,5.36136352]
[1751291668387,0.1,151.07,151.06,5.36136352]
[1751291668903,0.1,151.07,151.06,11.98124965]
[1751291671403,0.1,151.07,151.03,93.64]
[1751291671587,0.1,151.07,151.04,5.36136352]
[1751291671984,0.1,151.07,151.06,5.36136352]
[1751291672997,0.1,151.07,151.06,11.98124965]
[1751291674989,0.1,151.07,151.06,5.36136352]
[1751291675809,0.1,151.07,151.06,11.98124965]
[1751291676004,0.1,151.07,151.06,5.36136352]
[1751291676807,0.1,151.07,151.06,11.98124965]
[1751291679298,0.1,151.07,151.06,12.26557279]
[1751291679784,0.1,151.07,151.06,13.77807279]
[1751291680029,0.1,151.13,151.06,13.77807279]
[1751291680030,0.1,151.13,151.07,0.28432314]
[1751291680328,0.1,151.13,151.12,5.36136352]
[1751291681518,0.1,151.13,151.12,17.62430798]
[1751291681928,0.1,151.13,151.12,12.26294446]
[1751291682792,0.1,151.13,151.12,17.62430798]
[1751291682992,0.1,151.13,151.12,12.26294446]
[1751291684918,0.1,151.13,151.12,6.90158094]
[1751291685108,0.1,151.13,151.12,12.26294446]
[1751291688304,0.1,151.13,151.12,17.62430798]
[1751291688997,0.1,151.13,151.12,12.26294446]
[1751291689499,0.1,151.13,151.12,6.6172578]
[1751291689695,0.1,151.13,151.12,5.36136352]
[1751291690032,12.07824583,151.13,151.1,6.04]
[1751291690623,5.36136352,151.12,151.1,6.04]
[1751291690802,5.36136352,151.11,151.06,6.61960051]
[1751291691106,6.71688231,151.13,151.07,30.0]
[1751291691419,5.36136352,151.1,151.07,30.0]
[1751291691925,5.36136352,151.1,151.05,18.0015276]
[1751291692128,5.36136352,151.1,151.06,5.36136352]
[1751291692528,5.36136352,151.09,151.05,18.0015276]
[1751291692819,5.36136352,151.08,151.05,6.02]
[1751291693030,5.36136352,151.09,151.05,11.38136352]